Workbook

Sheet separate
A1: Lot Sizing with Multiple Products Ordered and Delivered Seperately
A2: Annual demand for A, RA = | D2: 240000
A3: Annual demand for B, RB = | D3: 30000
A4: Annual demand for C, RC = | D4: 10800
A5: Product specific ordering cost, sA = | D5: 100
A6: Product specific ordering cost, sB = | D6: 100
A7: Product specific ordering cost, sC = | D7: 100
A8: Unit Cost, CA = | D8: 5
A9: Unit Cost, CB = | D9: 4
A10: Unit Cost, CC = | D10: 5
A11: Common order cost, S = | D11: 400
A12: Holding cost, h = | D12: 0.2
A14: Order each product independently
B15: # orders/year | C15: EOQ | D15: Order Cost | E15: Holding Cost | F15: Total cost
A16: A | B16: =SQRT((D2*$D$12*D8)/(2*($D$11+D5))) -> 15.49193338 | C16: =SQRT(2*D2*(D11+D5)/(D12*D8)) -> 15491.93338 | D16: =B16*($D$11+D5) -> 7745.966692 | E16: =(C16/2)*D8*$D$12 -> 7745.966692 | F16: =D16+E16 -> 15491.93338 | I16: =SQRT((D2*$D$12*D8)/(2*($D$11+D5))) -> 15.49193338
A17: B | B17: =SQRT((D3*$D$12*D9)/(2*($D$11+D6))) -> 4.898979486 | C17: =SQRT(2*D3*(D11+D6)/(D12*D9)) -> 6123.724357 | D17: =B17*($D$11+D6) -> 2449.489743 | E17: =(C17/2)*D9*$D$12 -> 2449.489743 | F17: =D17+E17 -> 4898.979486 | I17: =SQRT((D3*$D$12*D9)/(2*($D$11+D6))) -> 4.898979486
A18: C | B18: =SQRT((D4*$D$12*D10)/(2*($D$11+D7))) -> 3.286335345 | C18: =SQRT(2*D4*(D11+D7)/(D12*D10)) -> 3286.335345 | D18: =B18*($D$11+D7) -> 1643.167673 | E18: =(C18/2)*D10*$D$12 -> 1643.167673 | F18: =D18+E18 -> 3286.335345 | I18: =SQRT((D4*$D$12*D10)/(2*($D$11+D7))) -> 3.286335345
F19: =SUM(F16:F18) -> 23677.24822
A20: Your Guess Total Cost | C20: 23677.24822
A21: Optimal Solution Cost | C21: =F19 -> 23677.24822
A22: Savings from Optimization | C22: =C20-C21 -> 0

Sheet all-together
A1: Lot Sizing with Multiple Products Ordered and Delivered Together
A2: Annual demand for A, RA = | D2: =separate!D2 -> 240000
A3: Annual demand for B, RB = | D3: =separate!D3 -> 30000
A4: Annual demand for C, RC = | D4: =separate!D4 -> 10800
A5: Product specific ordering cost, sA = | D5: =separate!D5 -> 100
A6: Product specific ordering cost, sB = | D6: =separate!D6 -> 100
A7: Product specific ordering cost, sC = | D7: =separate!D7 -> 100
A8: Unit Cost, CA = | D8: =separate!D8 -> 5
A9: Unit Cost, CB = | D9: =separate!D9 -> 4
A10: Unit Cost, CC = | D10: =separate!D10 -> 5
A11: Common order cost, S = | D11: =separate!D11 -> 400
A12: Holding cost, h = | D12: =separate!D12 -> 0.2
A14: Order all products simultaneously
B15: # orders/year | C15: Order Size | D15: Order Cost | E15: Holding Cost | F15: Total cost
A16: A | B16: =SQRT((D2*D12*D8+D3*D9*D12+D4*D10*D12)/(2*(D11+D7+D6+D5))) -> 14.01020037 | C16: =D2/B16 -> 17130.37599 | D16: =B16*($D$11+D5) -> 7005.100183 | E16: =(C16/2)*D8*$D$12 -> 8565.187996 | F16: =D16+E16 -> 15570.28818 | I16: =SQRT((D2*D12*D8+D3*D9*D12+D4*D10*D12)/(2*(D11+D7+D6+D5))) -> 14.01020037
A17: B | B17: =B16 -> 14.01020037 | C17: =D3/B17 -> 2141.296999 | D17: =B17*(D6) -> 1401.020037 | E17: =(C17/2)*D9*$D$12 -> 856.5187996 | F17: =D17+E17 -> 2257.538836
A18: C | B18: =B16 -> 14.01020037 | C18: =D4/B18 -> 770.8669197 | D18: =B18*(D7) -> 1401.020037 | E18: =(C18/2)*D10*$D$12 -> 385.4334598 | F18: =D18+E18 -> 1786.453496
F19: =SUM(F16:F18) -> 19614.28051
A20: Your Guess Total Cost | C20: 19614.28051
A21: Optimal Solution Total Cost | C21: =F19 -> 19614.28051
A22: Savings from Optimization | C22: =C20-C21 -> 0

Sheet Sheet3
